Workbook

Sheet Q
T14: Method 0 - This Method Does Not Work!
T15: Conditional Formatting Top 70% | AA15: Pivot table uses a Value Filter to show Top 70% of Items - won't work if there are duplicates
O16: Sum | P16: =SUM(A17:A30) -> 7263 | Y16: Method 3
A17: 768 | O17: 0.7 | P17: =P16*O17 -> 5084.1 | T17: 768 | Y17: 768 | AA17: Row Labels | AB17: Sum of Method 3
A18: 1152 | O18: How Many | P18: 3 | T18: 1152 | Y18: 1152 | AA18: 1152 | AB18: 1152
A19: 128 | O19: Total | P19: =SUM(LARGE($A$17:$A$30,ROW(INDIRECT("A1:A"&P18)))) -> 5472 | T19: 128 | Y19: 128 | AA19: 1728 | AB19: 1728
A20: 1 | O20: Keep | P20: =P19>=P17 -> TRUE | T20: 1 | Y20: 1 | AA20: 2592 | AB20: 2592
A21: 2592 | O21: HiLite | P21: =LARGE($A$17:$A$30,P18) -> 1152 | T21: 2592 | Y21: 2592 | AA21: Grand Total | AB21: 5472
A22: 4 | T22: 4 | Y22: 4
A23: 2 | T23: 2 | Y23: 2
A24: 8 | T24: 8 | Y24: 8
A25: 512 | T25: 512 | Y25: 512
A26: 1728 | T26: 1728 | Y26: 1728
A27: 256 | T27: 256 | Y27: 256
A28: 32 | T28: 32 | Y28: 32
A29: 64 | T29: 64 | Y29: 64
A30: 16 | T30: 16 | Y30: 16

Sheet Start
A14: 768
A15: 1152
A16: 128
A17: 1
A18: 2592
A19: 4
A20: 2
A21: 8
A22: 512
A23: 1728
A24: 256
A25: 32
A26: 64
A27: 16

Sheet Bill
H14: Method 0 - This Method Does Not Work!
H15: Conditional Formatting Top 70% | O15: Pivot table uses a Value Filter to show Top 70% of Items - won't work if there are duplicates
C16: Sum | D16: =SUM(A17:A30) -> 7263 | M16: Method 3
A17: 768 | C17: 0.7 | D17: =D16*C17 -> 5084.1 | H17: 768 | M17: 768 | O17: Row Labels | P17: Sum of Method 3
A18: 1152 | C18: How Many | D18: 3 | H18: 1152 | M18: 1152 | O18: 1152 | P18: 1152
A19: 128 | C19: Total | D19: =SUM(LARGE($A$17:$A$30,ROW(INDIRECT("A1:A"&D18)))) -> 5472 | H19: 128 | M19: 128 | O19: 1728 | P19: 1728
A20: 1 | C20: Keep | D20: =D19>=D17 -> TRUE | H20: 1 | M20: 1 | O20: 2592 | P20: 2592
A21: 2592 | C21: HiLite | D21: =LARGE($A$17:$A$30,D18) -> 1152 | H21: 2592 | M21: 2592 | O21: Grand Total | P21: 5472
A22: 4 | H22: 4 | M22: 4
A23: 2 | H23: 2 | M23: 2
A24: 8 | H24: 8 | M24: 8
A25: 512 | H25: 512 | M25: 512
A26: 1728 | H26: 1728 | M26: 1728
A27: 256 | H27: 256 | M27: 256
A28: 32 | H28: 32 | M28: 32
A29: 64 | H29: 64 | M29: 64
A30: 16 | H30: 16 | M30: 16

Sheet Mike
A16: Sales | B16: Cum | D16: % | E16: Lookup
A17: 2592 | B17: =SUM($A$17:A17)/$A$31 -> 0.3568773234 | D17: 0.8 | E17: =INDEX(A17:A30,MATCH(TRUE,B17:B30>D17,0)) -> 768
A18: 1728 | B18: =SUM($A$17:A18)/$A$31 -> 0.594795539
A19: 1152 | B19: =SUM($A$17:A19)/$A$31 -> 0.7534076828 | E19: Remember: Ctrl + Shift + Enter
A20: 768 | B20: =SUM($A$17:A20)/$A$31 -> 0.8591491119 | E20: You will get #VALUE! error if you don't use CSE
A21: 512 | B21: =SUM($A$17:A21)/$A$31 -> 0.929643398
A22: 256 | B22: =SUM($A$17:A22)/$A$31 -> 0.9648905411
A23: 128 | B23: =SUM($A$17:A23)/$A$31 -> 0.9825141126
A24: 64 | B24: =SUM($A$17:A24)/$A$31 -> 0.9913258984
A25: 32 | B25: =SUM($A$17:A25)/$A$31 -> 0.9957317913
A26: 16 | B26: =SUM($A$17:A26)/$A$31 -> 0.9979347377
A27: 8 | B27: =SUM($A$17:A27)/$A$31 -> 0.9990362109
A28: 4 | B28: =SUM($A$17:A28)/$A$31 -> 0.9995869475
A29: 2 | B29: =SUM($A$17:A29)/$A$31 -> 0.9998623158
A30: 1 | B30: =SUM($A$17:A30)/$A$31 -> 1
A31: =SUM(A17:A30) -> 7263

Sheet Sheet8
A3: Row Labels | B3: Sum of Sales
A4: 2592 | B4: 0.3568773234
A5: 1728 | B5: 0.594795539
A6: 1152 | B6: 0.7534076828
A7: 768 | B7: 0.8591491119
A8: 512 | B8: 0.929643398
A9: 256 | B9: 0.9648905411
A10: 128 | B10: 0.9825141126
A11: 64 | B11: 0.9913258984
A12: 32 | B12: 0.9957317913
A13: 16 | B13: 0.9979347377
A14: 8 | B14: 0.9990362109
A15: 4 | B15: 0.9995869475
A16: 2 | B16: 0.9998623158
A17: 1 | B17: 1
A18: Grand Total

Sheet Sheet7
A16: Sales | B16: Cum | D16: % | E16: Value
A17: 2592 | B17: =SUM($A$17:A17)/$A$31 -> 0.3568773234 | D17: 0.7 | E17: =INDEX(A17:A30,MATCH(TRUE,B17:B30>D17,0)) -> 1152
A18: 1728 | B18: =SUM($A$17:A18)/$A$31 -> 0.594795539
A19: 1152 | B19: =SUM($A$17:A19)/$A$31 -> 0.7534076828
A20: 768 | B20: =SUM($A$17:A20)/$A$31 -> 0.8591491119
A21: 512 | B21: =SUM($A$17:A21)/$A$31 -> 0.929643398
A22: 256 | B22: =SUM($A$17:A22)/$A$31 -> 0.9648905411
A23: 128 | B23: =SUM($A$17:A23)/$A$31 -> 0.9825141126
A24: 64 | B24: =SUM($A$17:A24)/$A$31 -> 0.9913258984
A25: 32 | B25: =SUM($A$17:A25)/$A$31 -> 0.9957317913
A26: 16 | B26: =SUM($A$17:A26)/$A$31 -> 0.9979347377
A27: 8 | B27: =SUM($A$17:A27)/$A$31 -> 0.9990362109
A28: 4 | B28: =SUM($A$17:A28)/$A$31 -> 0.9995869475
A29: 2 | B29: =SUM($A$17:A29)/$A$31 -> 0.9998623158
A30: 1 | B30: =SUM($A$17:A30)/$A$31 -> 1
A31: =SUM(A17:A30) -> 7263

Sheet Sheet6

Sheet sheet1
A13: Hurdle | B13: 0.7 | G13: More infor about PERCENTILE.EXC and PERCENTILE.INC
G14: Excel 2010 Statistics #27: Excel 2010 Functions for Percentile, Quartile and Rank
J15: PERCENTRANK
A16: Sales | C16: Sales | F16: Sales | H16: PERCENTRANK.EXC | I16: PERCENTILE.INC
A17: 768 | C17: 768 | F17: 768
A18: 1152 | C18: 1152 | F18: 1152
A19: 128 | C19: 128 | F19: 128
A20: 1 | C20: 1 | F20: 1
A21: 2592 | C21: 2592 | F21: 2592 | H21: Not it…
A22: 4 | C22: 4 | F22: 4
A23: 2 | C23: 2 | F23: 2
A24: 8 | C24: 8 | F24: 8
A25: 512 | C25: 512 | F25: 512
A26: 1728 | C26: 1728 | F26: 1728
A27: 256 | C27: 256 | F27: 256
A28: 32 | C28: 32 | F28: 32
A29: 64 | C29: 64 | F29: 64
A30: 16 | C30: 16 | F30: 16
